bitfinex/quotes_ETHUSD_20251120
["timestamp","ask_amount","ask_price","bid_price","bid_amount"]
[1763653257053,0.882904,2984.4,2983.2,0.189]
[1763653257827,1.78989664,2984.4,2983.2,0.6452]
[1763653258570,1.31249664,2984.2,2983.2,0.6452]
[1763653258865,0.117,2984.1,2983.2,0.6452]
[1763653259728,0.405504,2984.0,2983.2,0.189]
[1763653260173,0.5944,2984.1,2983.2,0.189]
[1763653260174,0.117,2984.1,2983.2,0.189]
[1763653260329,6.70241286,2984.0,2983.3,0.4562]
[1763653260529,10.05361929,2984.0,2983.3,0.4562]
[1763653260751,6.70241286,2984.0,2983.3,0.4562]
[1763653260959,3.35120643,2984.0,2983.3,0.4562]
[1763653261161,3.35120643,2984.0,2983.3,3.80818492]
[1763653261334,0.117,2984.1,2983.4,1.19112026]
[1763653261536,6.81922574,2984.1,2983.4,0.4562]
[1763653261768,6.81922574,2984.1,2983.2,0.189]
[1763653261929,6.81922574,2984.1,2983.3,0.4562]
[1763653262434,10.17033861,2984.1,2983.3,0.4562]
[1763653263275,3.46811287,2984.1,2983.3,0.4562]
[1763653263442,3.35120643,2984.0,2983.2,0.6452]
[1763653263629,1.31249664,2983.9,2983.2,0.189]
[1763653263828,1.47939664,2983.9,2982.9,0.189]
[1763653264035,1.47939664,2983.9,2983.0,0.4562]
[1763653264595,0.405504,2983.7,2983.1,0.189]
[1763653264752,0.117,2983.6,2983.1,0.189]
[1763653264926,0.117,2983.6,2983.1,0.6452]
[1763653265470,0.117,2983.6,2983.1,0.189]
[1763653265833,0.117,2983.6,2983.1,0.6452]
[1763653266027,0.117,2983.6,2983.1,0.189]
[1763653266564,10.53270415,2983.5,2982.4,0.4562]
[1763653266764,10.53270415,2983.5,2982.5,0.4562]
[1763653267166,13.8844722,2983.5,2982.5,0.4562]
[1763653267381,0.405504,2983.4,2982.5,0.4562]
[1763653267664,3.46865901,2983.6,2982.5,0.4562]
[1763653267839,7.16718062,2983.6,2982.5,0.83722043]
[1763653268040,3.46865932,2983.6,2982.6,6.84630734]
[1763653268242,0.117,2983.6,2982.6,7.30160734]
[1763653268463,0.117,2983.6,2983.5,0.6777]
[1763653268464,3.46865571,2983.6,2983.5,0.6777]
[1763653268690,0.117,2983.6,2983.5,1.133]
[1763653268891,3.35266403,2984.5,2983.5,1.133]
[1763653269065,0.117,2984.4,2983.6,0.4553]
[1763653270591,6.7017391,2984.3,2983.6,0.4553]
[1763653270790,0.117,2984.4,2983.6,0.4553]
[1763653270980,3.46775921,2984.4,2983.6,3.80693485]
[1763653271357,0.117,2984.4,2984.3,0.4862]
[1763653271559,0.002,2984.5,2984.3,0.4862]
[1763653271760,0.002,2984.5,2984.4,8.69479998]
[1763653271972,0.002,2984.8,2984.5,0.90699264]
[1763653272195,0.0012,2985.1,2985.0,0.4862]
[1763653272498,0.117,2986.0,2985.0,11.1377939]
[1763653272695,0.117,2985.9,2985.1,0.1915]
[1763653272895,0.117,2985.8,2985.1,0.6468]
[1763653273616,0.117,2985.8,2985.1,0.1915]
[1763653273907,0.1698,2985.7,2985.1,0.1915]
[1763653274122,0.6478,2985.7,2984.6,0.1915]
[1763653274408,0.1698,2985.7,2984.9,0.4553]
[1763653274609,6.698821,2985.6,2984.6,0.6468]
[1763653274908,3.3494105,2985.6,2984.7,0.4553]
[1763653275123,0.002,2985.1,2984.6,0.1915]
[1763653275413,0.119,2985.1,2984.6,0.1915]
[1763653275562,0.119,2985.1,2984.6,0.6468]
[1763653276266,0.119,2985.1,2984.7,0.4553]
[1763653276465,6.7001675,2985.0,2984.6,0.1915]
[1763653276664,6.7001675,2985.0,2984.7,0.4553]
[1763653276866,3.35008375,2985.0,2984.7,0.4553]
[1763653277280,3.35008375,2985.0,2984.0,10.19750968]
[1763653277281,0.624,2984.8,2984.1,0.1915]
[1763653277618,6.81895645,2985.1,2984.1,0.6468]
[1763653277816,3.46897152,2985.1,2984.8,0.4862]
[1763653277985,3.46897152,2985.1,2984.5,0.4553]
[1763653278172,3.46897152,2985.1,2984.1,0.1915]
[1763653278376,6.81894304,2985.1,2984.2,0.4553]
[1763653278807,6.81895645,2985.1,2984.2,0.4553]
[1763653279311,6.81895645,2985.1,2985.0,0.4862]
[1763653279312,0.002,2985.1,2985.0,0.4862]
[1763653279520,0.4591,2985.1,2984.1,0.6468]
[1763653279721,0.116,2985.0,2984.2,0.18432246]
[1763653280015,0.116,2985.0,2984.1,0.6468]
[1763653280313,0.1669,2984.9,2984.1,0.6468]
[1763653280512,6.70061644,2984.8,2984.1,0.1915]
[1763653280884,0.90699264,2984.7,2984.1,0.1915]
[1763653281081,0.90699264,2984.7,2983.3,6.84630734]
[1763653281082,0.405504,2984.6,2983.5,0.6468]
[1763653281280,0.405504,2984.6,2983.5,1.39611073]
[1763653281281,0.116,2984.5,2983.5,1.39611073]
[1763653281588,0.116,2984.5,2983.6,0.48881655]
[1763653281788,1.02299264,2984.7,2983.6,0.4553]
[1763653281996,1.50099264,2984.7,2983.6,0.4553]
[1763653282182,0.405504,2984.6,2983.6,0.4553]
[1763653282381,0.883504,2984.6,2983.6,0.4553]
[1763653282581,0.90699264,2984.4,2983.6,0.4553]
[1763653282783,0.90699264,2984.4,2983.5,0.94081073]
[1763653282982,0.2382,2983.6,2982.9,0.1915]
[1763653283223,0.883504,2984.3,2982.9,0.1915]
[1763653283224,0.116,2983.5,2982.9,0.1915]
[1763653283484,0.116,2983.4,2982.9,0.1915]
[1763653283630,0.116,2983.4,2982.5,0.38102043]
[1763653283794,0.116,2983.4,2982.5,0.4553]
[1763653284294,0.116,2983.4,2982.3,0.001]
[1763653284295,0.883504,2983.3,2982.3,0.001]
[1763653284808,6.70465972,2983.0,2982.3,0.001]
[1763653285007,0.116,2982.9,2982.3,0.03453116]
[1763653285221,0.116,2982.9,2982.4,0.4553]
[1763653285393,0.116,2982.9,2982.4,0.73036073]
[1763653285589,0.116,2982.9,2982.4,0.4553]
[1763653285816,0.116,2982.9,2982.8,0.4862]
[1763653286033,3.35214885,2983.2,2982.8,0.4862]
[1763653286204,0.1681,2982.9,2982.3,0.001]
[1763653286525,0.405504,2982.8,2982.3,0.001]
[1763653286694,3.35277945,2982.6,2982.3,0.001]
[1763653286895,6.7055589,2982.6,2982.3,0.001]
[1763653287329,3.35192948,2983.4,2982.5,0.4862]
[1763653287630,0.116,2983.3,2982.6,1.67475073]
[1763653287995,0.116,2983.3,2982.6,1.21945073]
[1763653288498,0.594,2983.3,2982.6,0.73325073]
[1763653288837,0.594,2983.3,2982.3,1.36329264]
[1763653288838,6.70421024,2983.2,2982.3,1.36329264]
[1763653289392,0.116,2983.3,2982.3,0.4563]
[1763653289599,6.81999169,2983.3,2982.4,0.459]
[1763653290036,3.46799275,2983.3,2982.4,7.30530734]
[1763653290204,0.116,2983.3,2982.8,6.84630734]
[1763653290409,0.116,2983.3,2982.9,0.68463073]
[1763653290606,3.46799275,2983.3,2982.9,0.68463073]
[1763653290815,0.116,2983.3,2983.0,0.459]
[1763653291037,0.116,2983.3,2983.2,0.6681]
[1763653291435,0.116,2983.3,2983.2,1.1271]
[1763653291637,0.116,2983.3,2983.1,0.1827]
[1763653292448,0.116,2983.3,2983.2,0.4854]
[1763653292656,3.35030822,2984.8,2983.3,0.90699264]
[1763653292852,6.70128998,2984.5,2983.7,0.4854]
[1763653293068,0.117,2984.6,2983.7,0.4854]
[1763653293372,0.002,2985.1,2984.5,0.6681]
[1763653293671,6.8189506,2985.1,2983.8,0.6417]
[1763653294038,3.46897152,2985.1,2983.9,0.459]
[1763653294219,0.119,2985.1,2983.9,0.459]
[1763653294550,7.28581262,2985.1,2983.9,0.459]
[1763653294767,7.28581262,2985.1,2984.0,3.35120643]
[1763653294952,7.28581262,2985.1,2984.1,0.38102064]
[1763653295149,10.63581893,2985.1,2984.1,0.38102064]
[1763653295351,0.872304,2985.0,2984.0,1.36599264]
[1763653295552,0.872304,2985.0,2983.8,0.1827]
[1763653295553,1.77929664,2985.0,2983.8,0.1827]
[1763653295864,0.1669,2984.9,2983.9,0.459]
[1763653296373,0.872304,2984.8,2983.8,0.1827]
[1763653296876,3.35064499,2984.5,2983.3,0.90699264]
[1763653297040,0.116,2984.4,2983.4,1.23433]
[1763653297369,0.5828,2984.4,2983.4,0.77533]
[1763653297722,0.116,2984.4,2983.4,1.23433]
[1763653298032,0.116,2984.4,2983.5,0.459]
[1763653298234,0.116,2984.4,2983.6,6.84630734]
[1763653298425,0.116,2984.4,2983.7,0.73053073]
[1763653298643,0.116,2984.4,2983.7,1.20903073]
[1763653298846,3.35086955,2984.3,2983.7,1.20903073]
[1763653299072,3.35086955,2984.3,2983.4,4.12718463]
[1763653299073,3.35086955,2984.3,2983.5,6.70345044]
[1763653299378,3.35086955,2984.3,2983.8,0.4785]
[1763653299588,3.4668096,2984.4,2983.8,0.4785]
[1763653300446,6.8176192,2984.4,2983.8,0.4785]
[1763653300646,3.4668096,2984.4,2983.8,0.4785]
[1763653301052,6.8176192,2984.4,2983.8,0.4785]
[1763653301253,6.8176192,2984.4,2983.8,0.38300309]
[1763653301456,6.8176192,2984.4,2983.4,0.77533]
[1763653301876,6.8176192,2984.4,2983.5,3.35176805]
[1763653302176,6.8176192,2984.4,2983.1,4.0143553]
[1763653302177,0.856204,2984.3,2983.1,4.0143553]
[1763653302374,0.856204,2984.3,2983.2,0.87993553]
[1763653302565,0.405504,2984.3,2983.2,0.87993553]
[1763653302768,0.4507,2984.2,2983.2,0.87993553]
[1763653302962,6.70218826,2984.1,2983.2,4.23193425]
[1763653303162,0.116,2984.0,2983.2,4.23193425]
[1763653303363,0.405504,2983.9,2983.3,0.86747794]
[1763653303575,0.405504,2983.9,2983.2,0.40143553]
[1763653303576,0.572504,2983.9,2983.2,0.40143553]
[1763653303776,0.572504,2983.9,2983.1,0.1837]
[1763653303777,1.023204,2983.9,2983.1,0.1837]
[1763653304248,0.167,2983.9,2983.1,4.01439222]
[1763653304443,0.116,2984.0,2983.1,0.6622]
[1763653304746,0.167,2983.8,2983.1,0.1837]
[1763653304987,0.167,2983.8,2983.1,3.53591485]
[1763653305185,6.86987826,2983.8,2983.2,0.35359149]
[1763653305559,6.86987826,2983.8,2983.1,0.1837]
[1763653305560,10.22132546,2983.8,2983.1,0.1837]
[1763653305886,1.35769264,2983.7,2983.1,0.001]
[1763653306049,0.116,2983.6,2983.1,0.001]
[1763653306454,0.4507,2983.5,2983.1,0.001]
[1763653307063,3.3518804,2983.4,2983.1,0.001]
[1763653307381,0.116,2983.6,2983.1,0.001]
[1763653307382,3.46765893,2983.6,2983.1,0.1881]
[1763653307592,6.81931786,2983.6,2983.1,0.1881]
[1763653307907,0.4507,2984.6,2983.5,0.477]
[1763653308193,0.405504,2984.2,2983.2,0.4785]
[1763653308394,0.116,2984.1,2983.1,0.1881]
[1763653308696,0.405504,2984.0,2983.1,0.1881]
[1763653308901,0.405504,2984.0,2983.1,0.001]
[1763653309198,0.90699264,2983.7,2983.1,0.001]
[1763653309404,0.503804,2983.2,2983.1,0.001]
[1763653309689,0.619804,2983.2,2983.1,0.001]
[1763653309894,1.066904,2983.2,2983.1,0.001]
[1763653310995,1.59266854,2983.2,2983.1,0.001]
[1763653311196,5.8517663,2983.2,2983.1,0.001]
[1763653311891,5.32600176,2983.2,2983.1,0.001]
[1763653312094,4.87890176,2983.2,2983.1,0.001]
[1763653312301,3.46810512,2983.2,2983.1,0.001]
[1763653312463,4.01360512,2983.2,2983.1,0.001]
[1763653312668,4.41910912,2983.2,2983.1,0.001]
[1763653312990,3.97540912,2983.2,2983.1,0.001]
[1763653313189,4.41910912,2983.2,2983.1,0.001]
[1763653314200,3.97540912,2983.2,2983.1,0.001]
[1763653314424,0.116,2983.2,2983.1,0.001]
[1763653314594,3.46810512,2983.2,2983.1,0.001]
[1763653314781,3.46810512,2983.2,2983.1,0.1881]
[1763653314782,0.116,2983.2,2983.1,0.1881]
[1763653315177,0.4507,2984.6,2983.1,1.1436]
[1763653315412,0.116,2984.5,2983.2,7.32330734]
[1763653315607,0.116,2984.5,2983.3,1.46943423]
[1763653315821,0.405504,2984.3,2983.3,1.46943423]
[1763653316124,0.405504,2984.3,2983.1,0.1881]
[1763653316284,0.93111294,2984.1,2983.1,0.1881]
[1763653316485,0.405504,2983.9,2983.1,0.6666]
[1763653317111,6.70308676,2983.7,2983.1,0.1881]
[1763653317416,0.116,2983.6,2983.1,0.1881]
[1763653318202,0.116,2983.6,2983.2,0.4785]
[1763653318405,0.116,2983.6,2983.1,0.59019839]
[1763653318598,0.116,2983.6,2983.1,0.1881]
[1763653319213,3.35176805,2983.5,2983.1,0.6666]
[1763653319419,0.116,2983.6,2983.5,0.477]
[1763653319794,0.116,2983.6,2983.5,0.9555]
[1763653319990,3.35064499,2984.5,2983.5,0.9555]
[1763653320191,0.1152,2984.4,2983.6,0.4785]
[1763653320392,0.405504,2984.3,2983.2,0.4785]
[1763653320781,0.405504,2984.3,2983.2,1.38549264]
[1763653321198,3.35086955,2984.3,2983.4,3.3518804]
[1763653321394,3.46596925,2984.4,2983.4,6.7037608]
[1763653321626,3.46596925,2984.4,2983.5,0.4785]
[1763653321930,0.1152,2984.4,2984.3,0.6641]
[1763653322105,0.1152,2984.4,2983.6,0.90532608]
[1763653322312,3.46597264,2984.4,2983.6,0.1871]
[1763653322624,3.46597264,2984.4,2983.7,0.4785]
[1763653322933,0.90699264,2984.3,2983.4,0.4785]
[1763653323094,6.70196366,2984.2,2983.4,3.83037128]
[1763653323296,3.35098183,2984.2,2983.5,0.4785]
[1763653323495,6.70196366,2984.2,2983.5,0.4785]
[1763653323794,0.1152,2984.4,2983.5,0.4785]
[1763653323795,3.46599764,2984.4,2984.1,0.1871]
[1763653324001,0.1152,2984.4,2984.3,0.477]
[1763653324436,0.1152,2984.4,2984.3,0.9555]
[1763653324932,0.1152,2984.4,2984.3,0.477]
[1763653325446,0.002,2985.1,2984.3,4.30636955]
[1763653325734,0.116,2985.0,2984.6,0.477]
[1763653325940,0.116,2985.0,2984.4,0.43063696]
[1763653326094,0.1661,2984.9,2984.3,0.4785]
[1763653326295,0.116,2985.0,2984.3,0.4785]
[1763653326723,0.116,2985.0,2984.3,3.82936334]
[1763653326999,0.116,2985.0,2984.4,0.4785]
[1763653327230,0.116,2985.0,2984.4,3.82919581]
[1763653327437,0.116,2985.0,2984.9,0.477]
[1763653327931,0.002,2985.1,2984.9,0.9555]
[1763653328107,0.002,2985.1,2985.0,0.477]
[1763653328427,0.002,2985.1,2985.0,0.4885]
[1763653328606,0.002,2985.1,2985.0,0.9811]
[1763653329398,0.002,2985.1,2984.5,4.22614204]
[1763653329598,0.002,2985.1,2984.6,1.13900738]
[1763653329836,0.002,2985.1,2984.2,0.4926]
[1763653330049,0.4718,2985.1,2984.1,0.1871]
[1763653330341,0.002,2985.1,2984.2,0.4926]
[1763653330496,0.002,2985.1,2985.0,0.4885]
[1763653330924,0.002,2985.1,2984.5,0.4926]
[1763653331109,0.002,2985.1,2984.4,0.6086]
[1763653331309,0.002,2985.1,2985.0,3.83858375]
[1763653331498,0.002,2985.1,2985.0,1.20738577]
[1763653331942,0.002,2985.1,2985.0,0.9811]
[1763653332247,0.002,2985.1,2984.5,0.4926]
[1763653332400,0.002,2985.1,2985.0,0.4885]
[1763653332814,0.002,2985.1,2985.0,0.9811]
[1763653335508,0.002,2985.1,2984.8,10.51420049]
[1763653335704,0.002,2985.1,2985.0,0.3479]
[1763653336522,0.002,2985.4,2985.0,0.3479]
[1763653336762,0.002,2985.4,2985.3,0.3479]
[1763653337528,0.002,2985.4,2984.6,0.3479]
[1763653338359,0.002,2985.4,2985.3,0.3479]
[1763653338761,0.002,2985.4,2984.9,0.3479]
[1763653338935,0.002,2985.4,2984.5,1.25489264]
[1763653339137,0.002,2985.4,2984.6,1.29294877]
[1763653339361,0.002,2985.4,2984.6,1.64084877]
[1763653339569,0.002,2985.4,2984.8,0.90699264]
[1763653339944,0.002,2985.4,2984.9,0.3479]
[1763653340270,0.002,2985.4,2984.6,1.52484877]
[1763653340468,0.4718,2985.4,2984.3,0.116]
[1763653340637,0.4718,2985.4,2984.3,0.70052292]
[1763653340971,0.4718,2985.4,2984.4,0.3479]
[1763653340972,0.002,2985.4,2984.4,0.3479]
[1763653341170,0.002,2985.4,2984.5,0.90699264]
[1763653341684,0.002,2985.4,2984.4,0.3479]
[1763653341882,0.4718,2985.4,2984.3,0.116]
[1763653342173,0.4718,2985.4,2984.4,0.43739185]
[1763653342536,0.405504,2985.3,2984.1,0.1871]
[1763653343057,0.405504,2985.1,2984.1,0.1871]
[1763653343368,0.116,2985.0,2984.1,0.1871]
[1763653343587,6.70039196,2984.9,2984.1,0.1871]
[1763653343785,3.54169598,2984.9,2983.9,0.90699264]
[1763653344094,3.54169598,2984.9,2983.7,3.35149591]
[1763653344095,0.875304,2984.8,2983.7,0.90699264]
[1763653344246,0.875304,2984.8,2983.7,1.25489264]
[1763653344446,0.875304,2984.8,2983.3,1.31242457]
[1763653344447,0.469,2984.7,2983.4,0.3479]
[1763653344652,0.405504,2984.6,2983.4,0.50124268]
[1763653344969,0.405504,2984.6,2983.1,14.17246676]
[1763653345287,0.405504,2984.6,2983.5,0.3487]
[1763653345460,0.405504,2984.6,2983.6,0.90699264]
[1763653345978,0.405504,2984.6,2983.5,3.70043292]
[1763653345979,0.405504,2984.6,2983.5,0.3487]
[1763653346144,0.405504,2984.6,2983.6,0.90699264]
[1763653346351,6.70084094,2984.7,2983.6,0.90699264]
[1763653346553,6.70084094,2984.7,2983.6,1.25569264]
[1763653347055,0.4698,2984.6,2983.2,4.72371665]
[1763653347250,0.116,2984.5,2983.2,4.60771665]
[1763653347555,6.70151454,2984.4,2983.2,8.07588729]
[1763653347753,7.17131454,2984.4,2983.3,0.82639873]
[1763653347947,7.17131454,2984.4,2984.0,0.001]
[1763653348377,0.4698,2984.3,2984.0,0.001]
[1763653348550,0.4551,2984.1,2984.0,0.001]
[1763653349350,0.4698,2984.3,2984.0,0.001]
[1763653349693,6.70157188,2984.4,2984.0,0.001]
[1763653349879,0.4668,2984.3,2984.0,0.001]
[1763653350395,0.4588,2984.1,2984.0,0.001]
[1763653350689,3.80989413,2984.1,2984.0,0.001]
[1763653350854,0.116,2984.5,2984.0,0.001]
[1763653351055,3.93348133,2984.5,2984.0,0.001]
[1763653351511,0.116,2984.5,2984.0,0.001]
[1763653351717,0.4668,2984.4,2984.0,0.001]
[1763653351927,0.4588,2984.1,2984.0,0.001]
[1763653352455,1.331104,2984.1,2984.0,0.001]
[1763653352586,0.405504,2983.8,2983.1,0.001]
[1763653352910,0.4588,2983.2,2983.1,0.001]
[1763653353213,0.5748,2983.2,2983.1,0.001]
[1763653353510,0.5748,2983.2,2983.0,0.001]
[1763653353511,0.405504,2983.1,2983.0,0.001]
[1763653353717,0.864304,2983.1,2983.0,0.001]
[1763653353870,1.331104,2983.1,2983.0,0.001]
[1763653354789,5.59031413,2983.1,2983.0,0.001]
[1763653355174,5.70631413,2983.1,2983.0,0.001]
[1763653355670,5.30081013,2983.1,2983.0,0.001]
[1763653355871,5.70631413,2983.1,2983.0,0.001]
[1763653358018,0.116,2983.1,2983.0,0.001]
[1763653358572,3.92231749,2983.1,2983.0,0.001]
[1763653358848,4.39081749,2983.1,2983.0,0.001]
[1763653359347,5.70331413,2983.1,2983.0,0.001]
[1763653361428,5.23481413,2983.1,2983.0,0.001]
[1763653361745,5.70331413,2983.1,2983.0,0.001]
[1763653364875,3.35184125,2983.5,2983.0,0.3527]
[1763653365036,0.116,2983.5,2983.1,0.5133]
[1763653365737,0.116,2983.5,2983.4,0.3517]
[1763653365962,0.002,2984.8,2983.4,0.3517]
[1763653365963,0.116,2984.0,2983.4,0.3517]
[1763653366788,3.35082601,2984.4,2983.9,0.3517]
[1763653366940,0.116,2984.5,2984.3,0.0951]
[1763653367544,0.116,2984.5,2983.5,10.05530415]
[1763653367739,0.116,2984.5,2984.0,0.0951]
[1763653368049,0.002,2984.3,2983.7,0.0951]
[1763653368264,0.0012,2984.3,2983.7,0.0951]
[1763653368665,0.90819264,2984.3,2983.7,0.0951]
[1763653368974,0.90819264,2984.3,2983.7,0.43977507]
[1763653369177,0.90819264,2984.3,2983.7,0.0951]
[1763653369674,0.0012,2984.3,2983.7,3.44663076]
[1763653369878,0.0012,2984.3,2983.7,3.44657129]
[1763653370066,0.0012,2984.3,2983.7,0.0951]
[1763653371376,0.90819264,2984.3,2983.7,3.44663351]
[1763653371578,0.90819264,2984.3,2983.8,0.34466335]
[1763653372377,0.90819264,2984.3,2983.7,0.0951]
[1763653373083,3.35211337,2984.3,2983.7,0.0951]
[1763653373259,0.90699264,2984.2,2983.7,0.0951]
[1763653373578,0.0012,2984.3,2983.7,0.0951]
[1763653373804,3.35209663,2984.3,2983.7,0.0951]
[1763653374185,0.0012,2984.3,2983.8,3.35143106]
[1763653374483,0.0012,2984.3,2983.7,0.43977365]
[1763653374987,0.0012,2984.3,2983.7,3.79130828]
[1763653375148,0.0012,2984.3,2984.2,0.3517]
[1763653375859,0.0012,2984.3,2983.7,7.14285166]
[1763653376191,0.0012,2984.3,2983.8,0.71428517]
[1763653376374,0.0012,2984.3,2984.2,0.3517]
[1763653376581,0.0012,2984.3,2983.8,1.06598517]
[1763653376884,0.0012,2984.3,2984.2,0.3517]
[1763653377811,0.0012,2984.3,2984.2,3.70268183]
[1763653378108,0.0012,2984.3,2984.2,0.3517]
[1763653378512,0.0012,2984.3,2984.2,3.70268183]
[1763653379076,0.0012,2984.3,2984.2,0.3517]
[1763653379278,0.0012,2984.3,2983.8,3.35143106]
[1763653379476,0.0012,2984.3,2983.8,6.70286212]
[1763653379678,0.0012,2984.3,2984.2,0.3517]
[1763653380073,0.0012,2984.3,2984.2,0.7034]
[1763653380989,0.0012,2984.3,2984.2,4.05438183]
[1763653381191,0.0012,2984.3,2984.2,1.09224678]
[1763653381408,0.0012,2984.3,2984.2,4.79492861]
[1763653381680,0.90699264,2985.1,2984.2,1.09224678]
[1763653381900,0.90699264,2985.1,2984.2,7.79419487]
[1763653382106,0.90699264,2985.1,2984.3,0.4663]
[1763653382313,0.002,2985.4,2984.4,0.82604949]
[1763653382490,0.002,2985.4,2985.2,0.5757]
[1763653382688,0.002,2985.4,2985.3,0.9379]
[1763653383087,0.002,2985.7,2985.5,0.90699264]
[1763653383428,0.002,2986.8,2985.5,0.90699264]
[1763653383429,0.002,2986.8,2985.7,0.90699264]
[1763653383715,0.002,2986.8,2986.7,0.6587]
[1763653384187,0.002,2986.8,2986.7,1.125]
[1763653384389,0.002,2988.2,2986.7,1.125]
[1763653384390,3.34851967,2988.2,2986.7,1.125]
[1763653384698,3.34851967,2988.2,2987.0,7.31438422]
[1763653384699,4.2536197,2988.1,2987.0,7.31438422]
[1763653384902,0.4685,2987.8,2986.7,0.1871]
[1763653385082,0.90899264,2987.9,2987.0,0.4716]
[1763653385284,0.90899264,2987.9,2987.0,3.81944064]
[1763653385486,0.002,2987.9,2987.0,4.28574064]
[1763653385685,0.002,2987.9,2987.0,5.16511842]
[1763653385920,0.90899264,2987.9,2987.0,5.16511842]
[1763653386104,0.002,2987.9,2987.0,12.00790264]
[1763653386415,0.002,2987.9,2987.0,5.16511842]
[1763653386618,0.002,2987.9,2987.0,1.70127778]
[1763653386821,0.002,2987.9,2987.0,4.28574064]
[1763653386985,0.002,2987.9,2987.0,3.81944064]
[1763653387182,0.002,2987.9,2987.0,4.40174064]
[1763653388295,0.002,2987.9,2987.7,0.17085733]
[1763653388609,0.002,2987.9,2987.8,1.35759264]
[1763653388842,0.002,2987.9,2987.8,0.116]
[1763653389135,0.002,2987.9,2987.7,0.17085733]
[1763653389430,0.002,2987.9,2987.8,0.4506]
[1763653389928,0.002,2987.9,2987.8,0.89728094]
[1763653390132,0.002,2987.9,2987.8,1.39558094]
[1763653390482,0.002,2987.9,2987.8,2.41857358]
[1763653391386,0.002,2987.9,2987.8,5.76551781]
[1763653391583,0.002,2987.9,2987.8,5.64951781]
[1763653391839,0.002,2987.9,2987.8,5.20283687]
[1763653392131,0.002,2987.9,2987.8,0.4506]
[1763653392315,0.0012,2987.9,2987.7,0.17085733]
[1763653392636,0.0012,2987.9,2987.8,0.4506]
[1763653393326,0.0012,2987.9,2987.8,0.9489]
[1763653393526,0.0012,2987.9,2987.8,11.93161081]
[1763653393723,0.0012,2987.9,2987.8,5.08882659]
[1763653393901,0.0012,2987.9,2987.7,3.51786613]
[1763653393902,0.0012,2987.9,2987.7,0.17085733]
[1763653394302,0.0012,2987.9,2987.6,3.34716183]
[1763653394997,0.0012,2987.9,2987.8,0.4506]
[1763653395203,0.0012,2987.9,2987.8,7.40938422]
[1763653395402,0.0012,2987.9,2987.8,3.91354423]
[1763653395642,0.0012,2987.9,2987.8,3.34694423]
[1763653396017,0.0012,2987.9,2987.8,3.79754423]
[1763653396201,0.0012,2987.9,2987.8,0.4506]
[1763653396410,0.0012,2987.9,2987.6,6.81033658]
[1763653396633,0.0012,2987.9,2987.7,0.90699264]
[1763653396828,0.0012,2987.9,2987.7,1.7456413]
[1763653397441,0.0012,2987.9,2987.7,4.18569686]
[1763653397646,0.0012,2987.9,2987.5,4.92338816]
[1763653397647,0.4799,2987.8,2987.5,0.17085733]
[1763653398008,0.4799,2987.6,2987.5,0.17085733]
[1763653398324,0.1966,2987.9,2987.5,0.17085733]
[1763653398645,0.0012,2987.9,2987.6,0.03347168]
[1763653398814,0.0012,2987.9,2987.5,3.86996106]
[1763653399217,0.0012,2987.9,2987.5,7.21724139]
[1763653399511,0.0012,2987.9,2987.6,0.4983]
[1763653399711,0.0012,2987.9,2987.8,0.4506]
[1763653400232,0.0012,2987.9,2987.6,0.116]
[1763653400553,0.0012,2987.9,2987.6,0.49751037]
[1763653400766,0.0012,2987.9,2987.8,8.20037686]
[1763653401357,0.0012,2987.9,2987.8,8.69867686]
[1763653401564,0.002,2988.2,2987.9,0.90699264]
[1763653401722,0.002,2988.5,2988.1,0.4506]
[1763653402056,0.002,2988.5,2988.4,7.29338422]
[1763653402246,0.002,2988.5,2988.4,8.63702264]
[1763653402664,0.002,2988.5,2988.4,8.52102264]
[1763653402855,0.002,2988.5,2988.4,1.17993842]
[1763653403054,0.002,2988.5,2988.4,1.0649]
[1763653403572,0.002,2988.5,2988.4,3.91287225]
[1763653403961,0.002,2988.5,2988.4,4.41117225]
[1763653404344,0.002,2988.5,2988.4,11.25395647]
[1763653404857,0.002,2988.5,2988.4,11.13795647]
[1763653405058,0.002,2988.5,2988.4,12.70239021]
[1763653405255,0.002,2988.5,2988.4,13.60938285]
[1763653405455,0.4768,2989.8,2988.5,0.90699264]
[1763653405668,0.4768,2989.8,2988.8,6.84278422]
[1763653405980,7.1662746,2989.8,2988.9,0.116]
[1763653406185,3.8215373,2989.8,2988.9,0.116]
[1763653406480,6.6894746,2989.8,2988.9,0.116]
[1763653406781,0.4768,2989.7,2988.9,0.116]
[1763653407002,0.4768,2989.7,2988.7,0.116]
[1763653407280,0.116,2990.0,2988.9,0.4983]
[1763653407491,3.46050847,2990.0,2988.9,0.4983]
[1763653407646,0.116,2990.0,2989.0,6.69120106]
[1763653407848,0.1962,2990.1,2989.2,6.84278422]
[1763653408092,3.54062338,2990.1,2989.2,6.84278422]
[1763653408296,4.01742338,2990.1,2989.2,6.84278422]
[1763653408896,0.4768,2990.0,2989.1,0.71895011]
[1763653409080,0.4768,2990.0,2988.9,3.34565929]
[1763653409385,0.4768,2990.0,2988.9,0.68074027]
[1763653409698,0.4768,2990.0,2988.8,4.25280446]
[1763653409699,6.68918692,2989.9,2988.8,4.25280446]
[1763653409901,6.68918692,2989.9,2988.8,0.90699264]
[1763653410203,0.4537,2989.8,2988.8,0.90699264]
[1763653410345,0.4537,2989.8,2988.8,1.02299264]
[1763653411672,3.79843069,2989.8,2988.9,6.69142492]
[1763653411875,3.79843069,2989.8,2989.0,0.77144176]
[1763653411876,7.14316138,2989.8,2989.0,0.77144176]